bitfinex/quotes_SOLUSD_20251013
["timestamp","ask_amount","ask_price","bid_price","bid_amount"]
[1760375086755,10.46,202.65,202.6,4.93566075]
[1760375086930,10.46,202.65,202.62,19.99999999]
[1760375087331,10.44,202.64,202.59,19.99999999]
[1760375087532,10.44,202.64,202.59,24.93600724]
[1760375087755,6.10684729,202.66,202.59,24.93600724]
[1760375088059,6.10684729,202.66,202.49,10.87647521]
[1760375088060,6.00684729,202.61,202.21,17.4202366]
[1760375088232,6.00684729,202.42,202.26,0.68]
[1760375088555,20.8,202.47,202.26,0.68]
[1760375088556,10.54,202.41,202.26,0.68]
[1760375088738,0.71,202.47,202.26,0.68]
[1760375088940,10.54,202.46,202.28,0.5]
[1760375089139,10.54,202.45,202.29,0.68]
[1760375089353,16.54684729,202.44,202.29,0.68]
[1760375089656,6.00684729,202.46,202.31,20.8]
[1760375089843,10.54,202.45,202.32,0.66]
[1760375090043,6.00684729,202.46,202.32,0.66]
[1760375090260,4.93851548,202.49,202.33,20.8]
[1760375090436,16.52684729,202.48,202.34,0.66]
[1760375090631,6.00684729,202.46,202.34,0.66]
[1760375090829,6.00684729,202.44,202.34,0.66]
[1760375091461,10.52,202.43,202.34,0.66]
[1760375091753,10.52,202.43,202.35,17.29676302]
[1760375092053,6.00684729,202.44,202.35,17.29676302]
[1760375092257,4.93632145,202.58,202.36,21.46]
[1760375092559,6.00684729,202.46,202.37,0.66]
[1760375092757,0.69,202.52,202.37,0.66]
[1760375092942,6.00684729,202.51,202.38,20.8]
[1760375093143,10.52,202.5,202.39,0.66]
[1760375093444,10.5,202.49,202.39,0.66]
[1760375093647,16.50684729,202.49,202.39,0.66]
[1760375093850,16.50684729,202.49,202.4,17.29249011]
[1760375094356,6.00684729,202.51,202.4,17.29249011]
[1760375094554,10.5,202.5,202.41,0.66]
[1760375094861,6.00684729,202.51,202.41,0.66]
[1760375095051,10.5,202.5,202.41,0.66]
[1760375095250,10.48,202.5,202.41,21.46]
[1760375095442,6.00684729,202.48,202.4,17.29249011]
[1760375095644,6.00684729,202.46,202.4,17.29249011]
[1760375095958,6.00684729,202.46,202.4,12.35177865]
[1760375096156,6.00684729,202.46,202.38,4.94119972]
[1760375096358,6.00684729,202.42,202.38,4.94119972]
[1760375096660,6.00684729,202.4,202.31,0.66]
[1760375096841,6.00684729,202.4,202.32,20.8]
[1760375097167,10.46,202.39,202.31,0.66]
[1760375097361,10.46,202.38,202.31,0.66]
[1760375097655,10.46,202.38,202.32,4.94266508]
[1760375097852,10.46,202.38,202.32,17.29932779]
[1760375098057,11.56647521,202.48,202.33,0.66]
[1760375098264,6.00684729,202.42,202.33,0.66]
[1760375098436,11.56647521,202.48,202.33,0.66]
[1760375098635,6.00684729,202.44,202.33,0.66]
[1760375099138,6.00684729,202.38,202.32,17.29932779]
[1760375099360,0.69,202.43,202.32,17.29932779]
[1760375099361,10.44,202.37,202.32,17.29932779]
[1760375099559,10.44,202.36,202.32,17.29932779]
[1760375099860,10.44,202.36,202.32,12.35666271]
[1760375100677,0.69,202.47,202.35,20.8]
[1760375100842,16.42684729,202.46,202.35,20.8]
[1760375101039,16.42684729,202.46,202.35,21.46]
[1760375101238,6.00684729,202.44,202.35,0.66]
[1760375101463,0.69,202.47,202.35,21.46]
[1760375101664,0.69,202.51,202.38,17.29419902]
[1760375101880,6.00684729,202.48,202.39,0.66]
[1760375102045,6.00684729,202.46,202.38,17.29419902]
[1760375102374,27.95671574,202.83,202.4,20.8]
[1760375102559,6.00684729,202.49,202.39,21.46]
[1760375102951,10.42,202.48,202.39,21.46]
[1760375103141,6.00684729,202.55,202.41,20.8]
[1760375103342,6.00684729,202.55,202.42,0.66]
[1760375103343,10.42,202.54,202.42,0.66]
[1760375103538,0.69,202.57,202.42,0.66]
[1760375103779,10.42,202.56,202.44,17.2890733]
[1760375103944,6.00684729,202.46,202.37,0.5]
[1760375104139,20.8,202.5,202.11,4.02443182]
[1760375104140,6.00684729,202.39,202.27,12.3597172]
[1760375104339,21.98647521,202.45,202.27,12.3597172]
[1760375104340,6.00684729,202.35,202.27,12.3597172]
[1760375104570,10.44,202.34,202.27,12.3597172]
[1760375104749,10.44,202.34,202.28,0.66]
[1760375104956,16.44684729,202.34,202.27,4.94388688]
[1760375105170,10.42,202.33,202.27,5.60388688]
[1760375105374,10.42,202.32,202.27,5.60388688]
[1760375105549,10.42,202.31,202.28,0.66]
[1760375105744,10.42,202.31,202.29,4.94339809]
[1760375105946,0.69,202.38,202.3,0.66]
[1760375106150,6.00684729,202.36,202.29,17.30189331]
[1760375106382,6.00684729,202.34,202.29,17.30189331]
[1760375106570,10.42,202.33,202.29,17.30189331]
[1760375106952,6.00684729,202.3,202.21,0.66]
[1760375107166,6.00684729,202.3,202.22,4.94510928]
[1760375108048,31.67647521,202.4,202.23,0.66]
[1760375108049,0.69,202.37,202.23,0.66]
[1760375108254,6.00684729,202.32,202.23,0.66]
[1760375108450,0.69,202.37,202.23,0.66]
[1760375108646,0.69,202.37,202.23,21.46]
[1760375108850,6.00684729,202.35,202.24,0.66]
[1760375109459,6.8823715,202.32,202.24,0.66]
[1760375109673,0.69,202.34,202.24,0.66]
[1760375109674,6.8823715,202.3,202.24,0.66]
[1760375109876,10.38,202.29,202.26,17.3044596]
[1760375110089,17.2623715,202.36,202.27,0.66]
[1760375110260,6.8823715,202.36,202.27,0.66]
[1760375110651,6.8823715,202.33,202.27,0.66]
[1760375110869,6.8823715,202.33,202.26,17.3044596]
[1760375110870,6.8823715,202.33,202.28,0.5]
[1760375111189,6.8823715,202.29,202.24,4.94462025]
[1760375111354,6.8823715,202.27,202.24,4.94462025]
[1760375112086,6.8823715,202.27,202.19,42.03959326]
[1760375112483,0.69,202.32,202.19,42.03959326]
[1760375112783,6.8823715,202.29,202.2,0.66]
[1760375113856,6.8823715,202.27,202.2,0.66]
[1760375114057,6.8823715,202.27,202.21,17.30873844]
[1760375114876,6.8823715,202.23,202.17,4.94633229]
[1760375115077,6.8823715,202.23,202.17,17.31216302]
[1760375115284,0.69,202.28,202.17,17.31216302]
[1760375115489,6.8823715,202.25,202.17,17.97216302]
[1760375115667,19.99999999,202.48,202.22,10.87647521]
[1760375115985,6.8823715,202.33,202.25,20.8]
[1760375116289,6.8823715,202.33,202.26,17.3044596]
[1760375116678,6.8823715,202.35,202.26,17.3044596]
[1760375116863,6.8823715,202.35,202.26,17.9644596]
[1760375117785,6.8823715,202.37,202.27,0.66]
[1760375117983,2.5801278,202.42,202.27,0.66]
[1760375117984,6.8823715,202.4,202.27,0.66]
[1760375118152,6.8823715,202.38,202.28,17.30274865]
[1760375118480,6.8823715,202.38,202.29,0.66]
[1760375119188,6.8823715,202.33,202.28,17.30274865]
[1760375119389,0.69,202.37,202.28,17.30274865]
[1760375119574,17.2023715,202.36,202.29,0.67]
[1760375119884,6.8823715,202.36,202.29,0.67]
[1760375120088,6.8823715,202.36,202.3,17.30103806]
[1760375120884,6.8823715,202.34,202.3,17.30103806]
[1760375121485,10.99,202.37,202.3,4.94315373]
[1760375121486,6.8823715,202.32,202.3,4.94315373]
[1760375121794,7.5423715,202.32,202.3,4.94315373]
[1760375122293,6.8823715,202.32,202.27,12.35931846]
[1760375122470,6.8823715,202.32,202.27,13.02931846]
[1760375122673,6.8823715,202.32,202.27,12.35931846]
[1760375122876,0.66,202.31,202.27,12.35931846]
[1760375123193,6.8823715,202.3,202.27,12.35931846]
[1760375123369,0.66,202.34,202.27,12.35931846]
[1760375123571,6.8823715,202.35,202.27,13.02931846]
[1760375123779,6.8823715,202.33,202.27,13.02931846]
[1760375124277,6.8823715,202.33,202.27,17.97320534]
[1760375124874,0.66,202.36,202.27,17.97320534]
[1760375124875,6.8823715,202.35,202.27,17.97320534]
[1760375125188,10.94,202.36,202.27,17.97320534]
[1760375125386,6.8823715,202.34,202.27,17.97320534]
[1760375126876,6.8823715,202.36,202.27,17.97320534]
[1760375127894,6.8823715,202.34,202.27,42.69263975]
[1760375128077,6.8823715,202.34,202.27,42.02263975]
[1760375128272,6.8823715,202.3,202.27,4.94388688]
[1760375128592,0.66,202.36,202.04,24.1258688]
[1760375128593,6.8823715,202.28,202.04,24.1258688]
[1760375128790,6.8823715,202.28,201.93,27.24444724]
[1760375128791,20.8,202.24,201.94,19.99999999]
[1760375128974,6.8823715,202.14,202.04,0.67]
[1760375129495,7.5423715,202.14,202.05,12.37292888]
[1760375129662,0.66,202.2,202.09,0.67]
[1760375129871,10.26,202.22,202.13,5.14726668]
[1760375130088,0.66,202.24,202.13,5.14726668]
[1760375130089,6.8823715,202.21,202.13,5.14726668]
[1760375130277,0.66,202.24,202.13,17.51554452]
[1760375130465,6.8823715,202.23,202.13,17.51554452]
[1760375130667,6.8823715,202.21,202.13,17.51554452]
[1760375130880,10.26,202.25,202.13,17.51554452]
[1760375131206,6.8823715,202.17,202.13,17.51554452]
[1760375131696,6.8823715,202.18,202.13,18.18554452]
[1760375131988,6.8823715,202.16,202.13,0.2]
[1760375132287,6.8823715,202.14,202.13,5.14729563]
[1760375132602,6.8823715,202.15,202.13,8.641554]
[1760375132789,6.8823715,202.14,202.13,5.14729563]
[1760375132966,6.8823715,202.16,202.13,8.64000381]
[1760375133166,6.8823715,202.16,202.14,3.49270818]
[1760375133467,6.8823715,202.16,202.13,5.14729563]
[1760375133468,0.66,202.17,202.13,0.2]
[1760375133664,0.66,202.26,202.14,0.67]
[1760375133890,6.10989672,202.23,202.14,0.67]
[1760375134107,42.00642449,202.35,202.15,10.87647521]
[1760375134296,6.10989672,202.29,202.16,0.67]
[1760375134594,6.10989672,202.26,202.17,17.31216302]
[1760375134759,6.10989672,202.24,202.17,17.31216302]
[1760375135165,10.24,202.23,202.17,17.31216302]
[1760375135361,10.24,202.23,202.17,4.94633229]
[1760375135764,10.24,202.23,202.17,17.31216302]
[1760375136403,0.66,202.24,202.14,17.31473235]
[1760375136905,10.22,202.23,202.14,17.31473235]
[1760375137065,6.76989672,202.29,202.15,0.67]
[1760375137262,10.2,202.28,202.17,20.8]
[1760375137466,0.66,202.29,202.18,0.67]
[1760375137694,10.2,202.28,202.18,0.67]
[1760375138465,10.2,202.28,202.19,17.31045055]
[1760375138662,0.66,202.29,202.19,17.31045055]
[1760375138866,10.18,202.28,202.19,17.31045055]
[1760375139091,0.66,202.29,202.19,17.31045055]
[1760375139296,10.18,202.28,202.19,17.31045055]
[1760375139499,6.10989672,202.28,202.19,17.31045055]
[1760375139671,10.84,202.27,202.19,17.31045055]
[1760375140077,0.66,202.27,202.19,17.31045055]
[1760375140283,10.18,202.26,202.19,17.31045055]
[1760375140667,6.10989672,202.24,202.16,17.31301938]
[1760375140863,6.10989672,202.24,202.16,4.94657696]
[1760375141101,6.10989672,202.22,202.14,4.94699185]
[1760375141305,6.10989672,202.2,202.13,0.2]
[1760375141507,0.66,202.21,202.13,0.2]
[1760375141508,6.10989672,202.16,202.13,0.2]
[1760375141672,0.66,202.15,202.13,0.2]
[1760375142803,0.66,202.24,202.14,0.67]
[1760375143002,6.10989672,202.26,202.14,0.67]
[1760375143170,0.66,202.25,202.14,0.67]
[1760375143519,10.16,202.24,202.14,0.67]
[1760375143728,0.66,202.23,202.13,17.51539135]
[1760375143907,10.14,202.22,202.13,17.51539135]
[1760375144110,0.66,202.23,202.13,17.51539135]
[1760375144624,10.14,202.22,202.14,0.67]
[1760375144993,19.99999999,202.34,202.14,0.67]
[1760375144994,0.66,202.27,202.15,17.31387582]
[1760375145212,6.10989672,202.24,202.15,17.98387582]
[1760375145420,10.14,202.23,202.15,17.98387582]
[1760375145607,6.10989672,202.25,202.15,17.98387582]
[1760375145807,6.10989672,202.24,202.15,17.98387582]
[1760375146408,10.14,202.23,202.15,17.98387582]
[1760375147124,11.05434084,202.25,202.15,17.98387582]
[1760375147416,10.12,202.24,202.15,17.98387582]
[1760375147605,10.12,202.23,202.15,17.98387582]
[1760375148211,21.17477313,202.23,202.15,17.98387582]
[1760375148524,16.22989672,202.23,202.15,17.98387582]
[1760375148702,10.1,202.22,202.15,17.98387582]
[1760375149016,16.20989672,202.22,202.15,17.98387582]
[1760375149227,6.10989672,202.19,202.15,4.94682166]
[1760375149600,0.69,202.21,202.15,4.94682166]
[1760375149799,6.10989672,202.2,202.15,4.94682166]
[1760375150007,10.79,202.19,202.14,4.94706638]
[1760375150202,0.69,202.19,202.14,4.94706638]
[1760375150417,10.1,202.18,202.14,4.94706638]
[1760375150606,10.08,202.17,202.14,4.94706638]
[1760375151123,0.69,202.23,202.14,17.31473235]
[1760375151336,16.18989672,202.22,202.14,17.31473235]
[1760375151501,6.79989672,202.23,202.15,0.66]
[1760375151711,10.08,202.22,202.15,0.66]
[1760375152024,10.08,202.22,202.16,4.94657696]
[1760375152198,2.58152073,202.26,202.17,0.66]
[1760375152405,10.08,202.25,202.17,0.66]
[1760375152911,2.58152073,202.26,202.17,0.66]
[1760375153124,10.06,202.25,202.17,0.5039]
[1760375153334,0.69,202.28,202.17,0.5039]
[1760375153821,2.58082982,202.29,202.17,0.5039]
[1760375154030,2.58082982,202.29,202.18,17.31130675]
[1760375154324,2.58082982,202.29,202.18,42.04174497]
[1760375154325,6.10989672,202.27,202.18,42.04174497]
[1760375154502,3.27082982,202.29,202.18,42.04174497]
[1760375154702,2.58082982,202.29,202.18,42.04174497]
[1760375155093,2.58082982,202.29,202.19,0.66]
[1760375156224,2.58082982,202.29,202.22,17.30788249]
[1760375157322,6.10989672,202.27,202.22,17.30788249]
[1760375157528,6.79989672,202.26,202.22,4.94510928]
[1760375157731,6.79989672,202.25,202.22,4.94510928]
[1760375158113,0.69,202.25,202.22,4.94510928]
[1760375158316,0.69,202.25,202.18,24.73043822]
[1760375158727,6.10989672,202.26,202.16,17.31301938]
[1760375158904,6.10989672,202.25,202.16,17.31301938]
[1760375159101,6.10989672,202.19,202.14,4.94706638]
[1760375159308,0.69,202.26,202.14,4.94706638]
[1760375159309,6.10989672,202.17,202.14,4.94706638]
[1760375159632,16.12989672,202.19,202.14,17.31473235]
[1760375160011,6.79989672,202.18,202.14,4.94706638]
[1760375160213,10.02,202.19,202.14,4.94706638]
[1760375160422,10.02,202.19,202.14,17.31473235]
[1760375161225,10.02,202.18,202.14,17.31473235]
[1760375161432,0.69,202.17,202.16,0.5]
[1760375161609,6.79989672,202.17,202.13,5.14727872]
[1760375161933,6.79989672,202.16,202.13,5.14727872]
[1760375162136,0.69,202.21,202.13,18.17555656]
[1760375162311,6.10989672,202.19,202.13,18.17555656]
[1760375162516,6.10989672,202.18,202.13,17.51555656]
[1760375162710,6.10989672,202.17,202.13,17.51555656]
[1760375162907,6.10989672,202.18,202.13,17.51555656]
[1760375163218,10.0,202.16,202.13,17.51555656]
[1760375163631,10.0,202.16,202.13,5.14727872]
[1760375165224,16.08989672,202.17,202.13,17.51555656]
[1760375165429,6.79989672,202.16,202.13,17.51555656]
[1760375166805,9.98,202.17,202.13,0.2]
[1760375166806,6.10989672,202.14,202.13,0.2]
[1760375167324,6.10989672,202.14,201.95,0.66]
[1760375167325,10.87647521,202.09,201.95,0.66]
[1760375167529,10.87647521,202.11,201.98,5.15098119]
[1760375167530,6.10989672,202.01,201.98,5.15098119]
[1760375167722,9.96,202.0,201.98,5.15098119]
[1760375168832,6.10989672,201.99,201.98,0.2]
[1760375169129,6.79989672,201.99,201.9,12.38196188]
[1760375169337,6.10989672,201.93,201.91,4.95270169]
[1760375169527,4.77276288,201.92,201.87,0.2]
[1760375169716,4.08276288,201.88,201.87,0.2]
[1760375170134,0.69,201.96,201.87,0.2]
[1760375170332,4.08276288,201.93,201.87,5.15365863]
[1760375170520,9.94,201.92,201.88,0.66]
[1760375170723,0.69,202.0,201.89,0.66]
[1760375171052,15.06986734,202.2,201.95,31.67647521]
[1760375171053,0.69,202.11,201.95,31.67647521]
[1760375171210,9.96,202.1,201.96,6.55542506]
[1760375171410,19.99999999,202.24,201.97,0.66]
[1760375171607,31.15434193,202.46,202.11,20.8]
[1760375171608,9.96,202.27,202.11,20.8]
[1760375171833,9.96,202.27,202.02,2.586285]
[1760375171834,4.08276288,202.22,202.12,0.66]
[1760375172040,10.06,202.26,202.12,0.66]
[1760375172216,4.08276288,202.2,202.13,17.31558897]
[1760375172417,10.06,202.19,202.13,17.31558897]
[1760375172631,14.14276288,202.19,202.13,17.31558897]
[1760375173034,4.08276288,202.18,202.13,17.31558897]
[1760375173237,4.08276288,202.17,202.13,17.31558897]
[1760375173427,10.06,202.16,202.1,0.66]
[1760375173633,10.06,202.16,202.11,0.66]
[1760375174228,4.08276288,202.16,202.12,4.9475559]
[1760375174929,4.08276288,202.17,202.12,4.9475559]
[1760375175139,10.04,202.15,202.12,4.9475559]
[1760375175438,10.04,202.14,202.13,0.66]
[1760375175934,10.04,202.14,202.12,17.31644566]
[1760375176242,10.04,202.14,202.12,17.97644566]
[1760375176538,14.12276288,202.14,202.1,4.94781438]
[1760375176730,4.08276288,202.13,202.06,17.32138625]
[1760375177116,4.08276288,202.12,202.09,0.5]
[1760375177428,10.04,202.14,202.09,1.16]
[1760375177621,4.08276288,202.15,202.09,1.16]
[1760375177820,10.02,202.14,202.09,1.16]
[1760375178437,4.08276288,202.13,202.09,0.5]
[1760375178743,4.08276288,202.13,202.1,4.94804552]
[1760375179128,14.10276288,202.14,202.1,4.94804552]
[1760375179323,4.08276288,202.19,202.11,0.67]
[1760375179523,4.08276288,202.21,202.11,0.67]
[1760375179716,2.58082982,202.29,202.13,20.8]
[1760375179916,15.81722823,202.4,202.19,20.8]
[1760375180141,10.04,202.36,202.23,20.8]
[1760375180346,2.57996402,202.3,202.24,0.67]
[1760375180546,0.1,202.37,202.25,17.3053152]
[1760375180547,10.04,202.29,202.25,17.3053152]
[1760375180722,10.04,202.28,202.26,0.67]
[1760375180924,10.04,202.28,202.27,0.67]
[1760375181936,4.08276288,202.34,202.25,17.3053152]
[1760375182132,2.57982645,202.36,202.25,17.3053152]
[1760375182335,2.57982645,202.36,202.26,0.67]
[1760375182336,10.02,202.35,202.26,0.67]
[1760375182551,10.02,202.35,202.27,17.30360408]
[1760375182829,10.02,202.34,202.28,0.67]
[1760375183347,0.1,202.37,202.28,21.47]
[1760375183645,0.1,202.37,202.29,1.1643398]
[1760375183842,0.1,202.37,202.3,0.67]
[1760375184232,0.1,202.37,202.3,21.96431537]
[1760375184432,10.0,202.4,202.31,0.67]
[1760375184656,0.56,202.49,202.31,0.67]
[1760375184657,10.0,202.41,202.32,42.01265321]
[1760375184951,2.57868497,202.43,202.33,1.16424207]
[1760375185130,0.1,202.49,202.35,20.8]
[1760375185457,2.57829676,202.46,202.36,0.67]
[1760375185671,0.46,202.45,202.32,42.01265321]
[1760375185963,2.57829676,202.46,202.32,42.01265321]
[1760375185964,2.57829676,202.46,202.35,20.8]
[1760375186143,2.57829676,202.46,202.36,0.67]
[1760375186665,2.57829676,202.46,202.37,42.49641742]
[1760375186843,2.57829676,202.46,202.38,0.67]
[1760375187276,4.08276288,202.45,202.38,0.67]
[1760375187653,2.57829676,202.46,202.38,0.67]
[1760375187854,4.08276288,202.45,202.38,0.67]
[1760375188168,4.08276288,202.41,202.37,4.94144388]
[1760375188372,4.08276288,202.41,202.22,44.72441713]
[1760375188373,4.08276288,202.38,202.3,13.02761512]
[1760375188658,9.98,202.39,202.32,4.94266508]
[1760375188831,14.06276288,202.39,202.36,0.5]
[1760375189031,0.46,202.45,202.36,1.17]
[1760375189264,4.08276288,202.38,202.36,0.5]
[1760375189566,14.04276288,202.37,202.36,0.5]
[1760375190231,9.96,202.37,202.36,0.5]
[1760375190433,9.96,202.37,202.32,17.29932779]
[1760375190660,14.04276288,202.37,202.34,4.94217653]
[1760375190851,9.96,202.37,202.34,4.94217653]
[1760375191049,14.04276288,202.37,202.34,4.94217653]
[1760375191250,4.08276288,202.35,202.32,4.94244206]
[1760375191449,4.08276288,202.34,202.3,4.94308624]
[1760375191762,4.08276288,202.35,202.3,4.94308624]
[1760375192151,14.04276288,202.37,202.3,5.61308624]
[1760375192658,18.98428425,202.37,202.27,4.94388688]
[1760375192861,18.98428425,202.37,202.27,17.30360408]
[1760375193230,14.04276288,202.37,202.27,17.30360408]
[1760375193467,4.08276288,202.35,202.24,20.8]
[1760375193665,0.46,202.34,202.24,17.30605349]
[1760375193873,4.08276288,202.33,202.24,4.94450286]
[1760375194164,9.02421611,202.37,202.25,0.67]
[1760375194348,9.94,202.32,202.25,0.67]
[1760375194548,4.54276288,202.33,202.24,5.61450286]
[1760375194741,0.46,202.36,202.24,4.94450286]
[1760375195063,9.92,202.35,202.25,0.67]
[1760375195565,14.00276288,202.35,202.25,0.67]
[1760375195863,9.92,202.35,202.25,0.67]
[1760375196037,4.08276288,202.33,202.25,0.67]
[1760375196233,5.40071733,202.4,202.25,0.67]
[1760375196440,9.92,202.39,202.25,0.67]
[1760375196650,0.1,202.55,202.27,20.8]
[1760375196651,0.46,202.44,202.27,20.8]
[1760375196853,0.46,202.44,202.28,17.97274865]
[1760375196854,9.48249811,202.44,202.28,17.97274865]
[1760375197061,9.92,202.43,202.31,20.8]
[1760375197235,4.08276288,202.39,202.29,0.67]
[1760375197436,4.08276288,202.41,202.29,0.67]
[1760375197643,4.08276288,202.43,202.29,0.67]
[1760375197842,4.54276288,202.43,202.29,0.67]
[1760375198131,9.92,202.42,202.29,0.67]
[1760375198335,4.54276288,202.43,202.29,0.67]
[1760375198544,9.9,202.42,202.29,0.67]
[1760375198742,7.51757724,202.46,202.32,17.29932779]
[1760375198975,4.54276288,202.45,202.32,17.96932779]
[1760375199138,9.9,202.44,202.32,17.96932779]
[1760375200063,9.9,202.43,202.32,17.96932779]
[1760375200276,9.48227644,202.45,202.32,17.96932779]
[1760375200480,2.57829676,202.46,202.35,20.8]
[1760375200644,2.57829676,202.46,202.36,21.47]
[1760375200963,2.57829676,202.46,202.37,0.49414438]
[1760375201269,2.57829676,202.46,202.38,0.67]
[1760375202040,2.57829676,202.46,202.39,17.29334453]
[1760375202364,2.57829676,202.46,202.4,0.67]
[1760375205467,2.57829676,202.46,202.45,0.67]
[1760375205845,2.57829676,202.46,202.44,4.93973523]
[1760375206165,2.57829676,202.46,202.44,0.67]
[1760375206467,2.57829676,202.46,202.45,0.67]
[1760375208055,2.57829676,202.46,202.45,5.60949123]
[1760375208872,2.57829676,202.46,202.45,4.93949123]
[1760375209186,2.57829676,202.46,202.45,5.63949123]
[1760375209552,2.57829676,202.46,202.45,4.93949123]
[1760375210375,2.57829676,202.46,202.43,12.3497162]
[1760375210576,9.82,202.45,202.43,12.3497162]
[1760375212084,2.57829676,202.46,202.43,12.3497162]
[1760375212264,9.8,202.45,202.44,0.71]
[1760375212466,9.8,202.45,202.4,18.00249011]
[1760375212777,9.8,202.45,202.4,4.94071146]
[1760375212778,0.46,202.44,202.4,4.94071146]
[1760375213090,9.8,202.45,202.4,17.29249011]
[1760375213382,9.8,202.45,202.4,4.94071146]
[1760375213564,0.46,202.44,202.4,4.94071146]
[1760375213771,2.57829676,202.46,202.41,0.71]
[1760375213956,12.37829676,202.46,202.4,4.94071146]
[1760375214148,12.37829676,202.46,202.32,4.94266508]
[1760375214149,4.54276288,202.45,202.32,4.94266508]
[1760375214356,0.46,202.44,202.32,4.94266508]
[1760375214548,9.8,202.43,202.33,0.71]
[1760375214752,0.46,202.44,202.33,0.71]
[1760375215092,0.84829676,202.46,202.36,31.67647521]
[1760375215290,0.1,202.49,202.45,20.8]
[1760375215659,0.66,202.63,202.47,20.8]
[1760375215858,0.66,202.66,202.48,32.17035114]
[1760375216069,1e-08,202.58,202.56,20.8]
[1760375216377,669.4,204.15,202.6,20.8]
[1760375216378,5.22582839,202.86,202.6,20.8]
[1760375216555,5.22582839,202.86,202.6,9.82]
[1760375216556,2.87084854,202.86,202.6,9.82]
[1760375216757,2.87084854,202.86,202.79,19.99999999]
[1760375217068,4.04018762,202.94,202.83,20.8]
[1760375217264,4.04018762,202.94,202.84,20.8]
[1760375217475,4.04018762,202.94,202.84,38.92190057]
[1760375217784,0.66,202.93,202.73,4.93]
[1760375217984,14.58276288,202.92,202.73,4.93]
[1760375218161,4.08276288,202.85,202.73,4.93]
[1760375218487,10.52,202.84,202.73,4.93]
[1760375218675,31.67647521,202.89,202.73,4.93]
[1760375218676,0.66,202.83,202.73,9.86256029]
[1760375218983,0.66,202.82,202.73,4.93]
[1760375219164,0.66,202.82,202.73,9.86251766]
[1760375219371,9.86,202.81,202.73,9.86251766]
[1760375219672,0.66,202.8,202.73,9.86251766]
[1760375220094,0.66,202.79,202.73,4.93]
[1760375220392,19.99999999,202.9,202.73,4.93]
[1760375220393,0.66,202.78,202.73,4.93]
[1760375220584,9.86,202.77,202.73,9.86253478]
[1760375220965,4.74276288,202.76,202.73,4.93]
[1760375221378,0.66,202.75,202.73,4.93]
[1760375221585,4.74276288,202.74,202.73,4.21]
[1760375221883,14.60276288,202.74,202.73,4.21]
[1760375222189,25.73289804,202.73,202.54,4.93729633]
[1760375222403,10.52,202.72,202.54,17.28053717]
[1760375222697,4.08276288,202.6,202.54,4.93729633]
[1760375222992,10.52,202.64,202.54,4.93729633]
[1760375223161,10.52,202.63,202.56,0.5]
[1760375223366,4.08276288,202.57,202.46,4.93924725]
[1760375223561,0.66,202.58,202.46,4.93924725]
[1760375223777,9.86,202.57,202.46,5.64924725]
[1760375223970,4.08276288,202.53,202.46,4.93924725]
[1760375224292,4.08276288,202.51,202.42,4.94022329]
[1760375224470,9.88,202.5,202.42,17.29078153]
[1760375224986,0.66,202.49,202.42,17.29078153]
[1760375225284,20.8,202.62,202.42,17.29078153]
[1760375225285,0.66,202.6,202.45,20.8]
[1760375225587,24.65691747,202.79,202.57,20.8]
[1760375225588,0.66,202.66,202.57,20.8]
[1760375225798,4.08276288,202.77,202.65,20.8]
[1760375225964,4.08276288,202.92,202.66,12.07991249]
[1760375225965,0.66,202.79,202.66,12.07991249]
[1760375226177,4.08276288,202.76,202.67,20.8]
[1760375226397,13.96276288,202.75,202.67,20.8]
[1760375226569,9.88,202.75,202.67,20.8]
[1760375226775,9.88,202.74,202.64,17.27200946]
[1760375226992,4.08276288,202.65,202.56,20.8]